fUSD/lending_fUSD_20240121
["ID","MTS","AMOUNT","RATE_DAILY","PERIOD"]
[312360513,1705828246660,-151.0121,0.00022897,3]
[312360514,1705828246669,-151.0121,0.00022897,3]
[312360515,1705828246678,-151.0121,0.00022897,3]
[312360516,1705828246688,-151.0121,0.00022897,3]
[312360517,1705828246697,-151.0121,0.00022897,3]
[312360518,1705828246706,-151.0121,0.00022897,3]
[312360519,1705828246716,-151.0121,0.00022897,3]
[312360520,1705828246726,-151.0121,0.00022897,3]
[312360521,1705828246736,-151.0121,0.00022897,3]
[312360522,1705828246746,-151.0121,0.00022897,3]
[312360523,1705828246756,-151.0121,0.00022897,3]
[312360524,1705828246765,-151.0121,0.00022897,3]
[312360525,1705828246774,-151.0121,0.00022897,3]
[312360526,1705828246784,-151.0121,0.00022897,3]
[312360527,1705828246797,-151.0121,0.00022897,3]
[312360528,1705828246807,-151.0121,0.00022897,3]
[312360529,1705828246816,-151.0121,0.00022897,3]
[312360530,1705828246826,-151.0121,0.00022897,3]
[312360531,1705828246836,-151.0121,0.00022897,3]
[312360532,1705828246846,-151.0121,0.00022897,3]
[312360533,1705828246855,-151.0121,0.00022897,3]
[312360534,1705828246865,-151.0121,0.00022897,3]
[312360535,1705828246875,-151.0121,0.00022897,3]
[312360536,1705828246884,-151.0121,0.00022897,3]
[312360537,1705828246893,-151.0121,0.00022897,3]
[312360538,1705828246903,-151.0121,0.00022897,3]
[312360539,1705828246912,-151.0121,0.00022897,3]
[312360540,1705828246922,-286.0121,0.00022897,3]
[312360541,1705828246931,-747.89331272,0.00022899,2]
[312360542,1705828246941,-55555.0,0.000229,2]
[312360543,1705828246950,-156.93296347,0.000229,2]
[312360544,1705828246960,-5000.0,0.000229,2]
[312360545,1705828246970,-21641.97842842,0.000229,2]
[312360546,1705828246980,-177.91751826,0.000229,2]
[312360547,1705828246990,-548.66382127,0.000229,2]
[312360548,1705828246999,-157.50308443,0.000229,2]
[312360549,1705828247009,-227.36657171,0.000229,2]
[312360550,1705828247018,-197.96567422,0.000229,6]
[312360551,1705828247027,-331.41304401,0.000229,2]
[312360552,1705828247037,-711.15,0.00022924,2]
[312360553,1705828247046,-3464.20120651,0.00022978,3]
[312360554,1705828247056,-370.88300567,0.00022978,2]
[312360555,1705828247065,-1613.52412315,0.0002299,2]
[312360556,1705828247074,-165.02380166,0.00022997,2]
[312360557,1705828247083,-239.18150553,0.00022998,2]
[312360558,1705828247095,-187.96504818,0.00022998,2]
[312360559,1705828247104,-158.39619227,0.00022998,2]
[312360560,1705828247114,-160.05458774,0.00022998,2]
[312360561,1705828247123,-787.0,0.00022999,2]
[312360562,1705828247133,-216.95528023,0.00022999,2]
[312360563,1705828247142,-3298.13430336,0.00022999,2]
[312360564,1705828247151,-36248.25700957,0.00022999,2]
[312360565,1705828247165,-465.67000015,0.00022999,2]
[312360566,1705828247176,-561.424,0.00022999,2]
[312360568,1705828247398,-894.53305641,0.00022999,2]
[312360575,1705828565174,204.0,0.00019035,2]
[312360595,1705829336215,517.0,0.00035911,30]
[312360613,1705829405858,-174.36148405,0.00019594,2]
[312360614,1705829405884,-204.0,0.00019595,2]
[312360615,1705829405905,-359.64,0.00019719,2]
[312360616,1705829405925,-250.0,0.00021482,2]
[312360617,1705829405947,-406.09,0.00021482,2]
[312360618,1705829405968,-1000.0,0.000215,2]
[312360619,1705829405993,-467.85,0.00021519,2]
[312360620,1705829406015,-161.53695031,0.00021537,2]
[312360621,1705829406034,-200.0,0.00021556,2]
[312360622,1705829406057,-162.87,0.00021637,2]
[312360623,1705829406079,-593.91,0.00021641,2]
[312360624,1705829406100,-159.06,0.00021644,2]
[312360625,1705829406122,-152.37,0.00021681,2]
[312360626,1705829406141,-182.0,0.00021799,2]
[312360627,1705829406161,-8936.31156564,0.000218,2]
[312360641,1705829432273,-612.90951479,0.000218,2]
[312360642,1705829432344,-2271.7565,0.000218,2]
[312360643,1705829432357,-257.11704311,0.000218,2]
[312360644,1705829432439,-526.46031176,0.000218,2]
[312360645,1705829432451,-940.9021208,0.000218,2]
[312360646,1705829432499,-793.50547224,0.000218,2]
[312360647,1705829432563,-4444.62967272,0.000218,2]
[312360650,1705829438314,-356.03050799,0.000218,2]
[312360651,1705829438324,-1000.0,0.000219,2]
[312360652,1705829438333,-499.99,0.00021916,2]
[312360653,1705829438342,-250.0,0.00021918,2]
[312360654,1705829438352,-5880.18,0.00021918,2]
[312360655,1705829438361,-13.13629201,0.00021953,3]
[312360656,1705829438372,-203.56172652,0.00021953,3]
[312360657,1705829438382,-207.10849026,0.00021953,2]
[312360658,1705829438410,-1126.34610907,0.00021953,2]
[312360659,1705829438419,-159.36,0.00021962,2]
[312360660,1705829438429,-193.33441433,0.00021983,2]
[312360661,1705829438480,-166.30558567,0.00021983,2]
[312360662,1705829438490,-300.0,0.000222,8]
[312360663,1705829438499,-204.0,0.00022288,5]
[312360664,1705829438508,-73.81441433,0.000223,8]
[312360665,1705829438520,-526.18558567,0.000223,8]
[312360666,1705829438528,-152.0,0.00022378,2]
[312360667,1705829438537,-1000.0,0.000224,8]
[312360668,1705829438546,-1333.45459933,0.00022444,2]
[312360669,1705829438556,-1169.56764588,0.000225,8]
[312360670,1705829438567,-130.43235412,0.000225,8]
[312360671,1705829438576,-155.0,0.00022537,7]
[312360672,1705829438585,-1293.22427896,0.0002259,2]
[312360673,1705829438597,-40.23032037,0.0002259,2]
[312360674,1705829438606,-408.21030181,0.00022596,2]
[312360675,1705829438615,-174.36148405,0.00022597,2]
[312360676,1705829438624,-33886.12100562,0.00022598,2]
[312360769,1705829441479,-1395.60701373,0.00022598,2]
[312360783,1705829443300,-58600.88918065,0.00022598,2]
[312360784,1705829443309,-1600.0,0.000226,8]
[312360785,1705829443319,-300.0,0.000227,8]
[312360786,1705829443328,-300.0,0.000228,8]
[312360787,1705829443338,-435.63275195,0.00022816,3]
[312360788,1705829443347,-800.0,0.00022816,2]
[312360789,1705829443356,-843.0642,0.00022899,2]
[312360790,1705829443366,-293.60339744,0.00022899,2]
[312360791,1705829443375,-2547.60164492,0.00022899,2]
[312360792,1705829443384,-293.60339742,0.00022899,2]
[312360793,1705829443394,-2547.60164489,0.00022899,2]
[312360794,1705829443403,-293.60339742,0.00022899,2]
[312360795,1705829443413,-2547.60164489,0.00022899,2]
[312360796,1705829443422,-293.60339742,0.00022899,2]
[312360797,1705829443431,-2547.60164489,0.00022899,2]
[312360798,1705829443441,-5000.0,0.00022899,2]
[312360799,1705829443450,-293.60339742,0.000229,2]
[312360800,1705829443459,-2547.60164489,0.000229,2]
[312360801,1705829443469,-293.60339742,0.000229,2]
[312360802,1705829443478,-2547.60164489,0.000229,2]
[312360803,1705829443487,-293.60339742,0.000229,2]
[312360804,1705829443496,-2547.60164489,0.000229,2]
[312360805,1705829443505,-157.50308436,0.000229,2]
[312360806,1705829443514,-272.97619666,0.000229,2]
[312360811,1705829443760,-567.44,0.000229,2]
[312360812,1705829446286,-159.58380334,0.000229,2]
[312360813,1705829446296,-285.15132024,0.000229,2]
[312360814,1705829446343,-8.45207718,0.000229,2]
[312360815,1705829446353,-1036.91732801,0.000229,2]
[312360816,1705829446369,-354.16645204,0.000229,2]
[312360817,1705829446521,-1156.51786484,0.000229,2]
[312360818,1705829446530,-300.0,0.000229,8]
[312360819,1705829446540,-500.0,0.00022998,2]
[312360820,1705829446549,-387.07932123,0.00022999,3]
[312360821,1705829446559,-349.64986785,0.00022999,3]
[312360822,1705829446568,-26935.77381133,0.00022999,2]
[312360834,1705829644262,204.0,0.00018595,2]
[312360836,1705829686286,-2120.0,0.00019999,2]
[312360837,1705829703864,375.53878387,0.00018595,2]
[312360838,1705829708143,291.48413995,0.00018595,2]
[312360839,1705829718395,190.10040705,0.00018595,2]
[312360840,1705829734104,-174.36148405,0.00019999,2]
[312360841,1705829734124,-2253.63851595,0.0002,2]
[312360842,1705829760400,500.0,0.00018595,2]
[312360843,1705829762133,1018.94191937,0.00018595,2]
[312360844,1705829764014,206.0,0.00018595,2]
[312360845,1705829792222,-223.44850798,0.0002,2]
[312360846,1705829792241,-1097.74494293,0.0002,2]
[312360847,1705829792264,-331.55,0.00020855,2]
[312360848,1705829792285,-129.25654909,0.00021355,5]
[312360856,1705830065396,3192.30886784,0.000195,2]
[312360857,1705830070514,174.36148405,0.000195,2]
[312360860,1705830364232,209.0,0.00019355,2]
[312360861,1705830379227,174.36148405,0.000195,2]
[312360862,1705830388830,352.08,0.00019364,2]
[312360863,1705830418872,204.78818539,0.00035913,30]
[312360870,1705830436075,3937.0,0.00035913,30]
[312360942,1705830631566,-504.21645281,0.00021154,2]
[312360943,1705830631586,-160.91320218,0.00021155,2]
[312360944,1705830631599,-489.35405252,0.00021215,2]
[312360945,1705830631624,-282.33262533,0.00021215,2]
[312360946,1705830631637,-1475.65458751,0.00021215,2]
[312360947,1705830631650,-612.37351679,0.00021215,2]
[312360948,1705830631685,-755.55201785,0.00021215,2]
[312360949,1705830631695,-162.87,0.00021228,2]
[312360950,1705830631705,-675.12,0.00021282,2]
[312360951,1705830631715,-150.0,0.00021315,2]
[312360952,1705830631724,-165.46,0.00021323,2]
[312360953,1705830631735,-515.62,0.00021332,2]
[312360954,1705830631745,-166.79,0.00021344,2]
[312360955,1705830631754,-324.88,0.00021398,2]
[312360956,1705830631764,-150.41,0.00021502,2]
[312360957,1705830631774,-150.41,0.00021564,2]
[312360958,1705830631783,-733.97,0.00021601,2]
[312360959,1705830631793,-150.41,0.00021626,2]
[312360960,1705830631802,-352.08,0.00021628,2]
[312360961,1705830631811,-150.0,0.00021643,2]
[312360962,1705830631821,-1209.91,0.00021644,2]
[312360963,1705830631831,-716.43,0.00021654,2]
[312360964,1705830631840,-160.1,0.00021667,2]
[312360965,1705830631850,-150.41,0.00021689,2]
[312360966,1705830631859,-150.41,0.00021751,2]
[312360968,1705830631868,-150.41,0.00021813,2]
[312360970,1705830631878,-354.14107881,0.00021847,2]
[312360972,1705830631887,-150.41,0.00021875,2]
[312360974,1705830631896,-152.31,0.00021889,2]
[312360976,1705830631906,-250.0,0.000219,2]
[312360978,1705830631915,-250.0,0.00021918,2]
[312360980,1705830631924,-1266.09,0.00021918,2]
[312360982,1705830631934,-152.31,0.00021925,2]
[312360984,1705830631943,-150.41,0.00021938,2]
[312360986,1705830631952,-152.31,0.00021962,2]
[312360987,1705830631961,-152.31,0.00021998,2]
[312360988,1705830631971,-150.41,0.00022,2]
[312360989,1705830631980,-176.39,0.00022,2]
[312360990,1705830631989,-502.5825696,0.00022,2]
[312360991,1705830631999,-152.31,0.00022035,2]
[312360992,1705830632008,-150.41,0.00022062,2]
[312360993,1705830632017,-152.31,0.00022071,2]
[312360994,1705830632027,-1063.68624298,0.00022077,2]
[312360995,1705830632037,-152.31,0.00022108,2]
[312360996,1705830632046,-150.41,0.00022124,2]
[312360997,1705830632055,-152.31,0.00022144,2]
[312360998,1705830632064,-152.31,0.00022181,2]
[312360999,1705830632073,-150.41,0.00022187,2]
[312361000,1705830632082,-152.31,0.00022217,2]
[312361001,1705830632091,-150.41,0.00022249,2]
[312361002,1705830632101,-152.31,0.00022254,2]
[312361003,1705830632110,-152.31,0.0002229,2]
[312361004,1705830632119,-466.060242,0.00022307,2]
[312361005,1705830632128,-150.41,0.00022311,2]
[312361006,1705830632138,-1348.45459934,0.00022318,2]
[312361007,1705830632147,-152.31,0.00022327,2]
[312361008,1705830632156,-150.41,0.00022373,2]
[312361009,1705830632166,-150.41,0.00022436,2]
[312361010,1705830632175,-1209.91,0.00022445,2]
[312361011,1705830632184,-209.0,0.00022482,6]
[312361012,1705830632194,-160.1,0.00022482,2]
[312361013,1705830632203,-150.41,0.00022498,2]
[312361014,1705830632213,-165.83,0.00022536,2]
[312361015,1705830632222,-352.63,0.00022548,2]
[312361016,1705830632231,-150.41,0.0002256,2]
[312361017,1705830632241,-150.41,0.00022622,2]
[312361018,1705830632250,-1348.45459934,0.00022628,2]
[312361019,1705830632259,-200.0,0.00022815,2]
[312361020,1705830632269,-200.0,0.00022816,2]
[312361021,1705830632279,-800.0,0.00022816,2]
[312361022,1705830632288,-1968.50411735,0.00022896,2]
[312361023,1705830632301,-722.91707042,0.00022896,2]
[312361029,1705830637595,-569.31341223,0.00022896,2]
[312361030,1705830637605,-214.16190081,0.00022899,2]
[312361031,1705830637614,-157.01037795,0.000229,2]
[312361032,1705830637624,-5000.0,0.000229,2]
[312361033,1705830637634,-214.16190081,0.000229,2]
[312361034,1705830637644,-797.56590787,0.000229,6]
[312361035,1705830637656,-415.17681776,0.000229,2]
[312361036,1705830637666,-9724.69745732,0.000229,2]
[312361037,1705830637676,-515.62,0.00022976,2]
[312361038,1705830637685,-164.78321963,0.00022997,2]
[312361039,1705830637695,-296.49485909,0.00022997,2]
[312361040,1705830637705,-264.73979645,0.00022997,2]
[312361041,1705830637715,-4549.49133,0.00022998,2]
[312361042,1705830637726,-3298.13430336,0.00022998,2]
[312361043,1705830637736,-500.0,0.00022998,2]
[312361044,1705830637746,-42203.08598609,0.00022999,2]
[312361045,1705830637758,-261.99836,0.00022999,2]
[312361046,1705830637770,-12243.66165877,0.00022999,2]
[312361047,1705830637782,-298.7905302,0.00022999,2]
[312361048,1705830637798,-585.23996707,0.00022999,2]
[312361049,1705830637810,-546.17176038,0.00022999,2]
[312361050,1705830637822,-2551.7428244,0.00022999,2]
[312361051,1705830637835,-3643.07661042,0.00022999,2]
[312361052,1705830637851,-18472.90876961,0.00022999,2]
[312361053,1705830637863,-313.27,0.00022999,2]
[312361054,1705830637875,-7980.00014775,0.00022999,2]
[312361055,1705830637891,-1030.21621389,0.00022999,2]
[312361056,1705830637902,-7544.52978322,0.00022999,2]
[312361266,1705830640843,-1807.65857259,0.00022999,2]
[312361267,1705830640995,-269.78455022,0.00022999,2]
[312361268,1705830641006,-355.32,0.00022999,2]
[312361269,1705830641017,-4272.3,0.00022999,2]
[312361270,1705830641028,-373.08925963,0.00022999,2]
[312361271,1705830641040,-498.1733841,0.00022999,2]
[312361272,1705830641056,-442.88535438,0.00022999,2]
[312361273,1705830641069,-501.7001713,0.00022999,2]
[312361295,1705830642543,-357.91238838,0.00022999,2]
[312361297,1705830642554,-908.2369242,0.00022999,2]
[312361303,1705830642602,-1340.52582585,0.00022999,2]
[312361304,1705830642613,-1648.37425309,0.00022999,2]
[312361305,1705830642627,-861.16236143,0.00022999,2]
[312361306,1705830642639,-687.42428315,0.00022999,2]
[312361307,1705830642668,-1432.99391161,0.00022999,2]
[312361308,1705830642679,-1518.96205485,0.00022999,2]
[312361309,1705830642781,-42782.75229858,0.00022999,2]
[312361310,1705830642792,-955.59576504,0.00022999,2]
[312361311,1705830642804,-1929.75908726,0.00022999,2]
[312361312,1705830643038,-1323.33603651,0.00022999,2]
[312361313,1705830643050,-3993.5011963,0.00022999,2]
[312361314,1705830643061,-516.68256542,0.00022999,2]
[312361316,1705830645556,-503.66217728,0.00022998,2]
[312361317,1705830645566,-3298.13430336,0.00022998,2]
[312361318,1705830645575,-23178.08981291,0.00022999,2]
[312361319,1705830645587,-916.65069652,0.00022999,2]
[312361320,1705830645615,-7351.74604712,0.00022999,2]
[312361321,1705830645626,-2553.9,0.00022999,2]
[312361322,1705830645680,-4572.52516995,0.00022999,2]
[312361323,1705830645803,-20268.58482151,0.00022999,2]
[312361398,1705831339329,150.0,0.00035922,30]
[312361402,1705831648294,316.87,0.00019481,2]
[312361403,1705831697334,-150.0,0.0002132,2]
[312361404,1705831697365,-23880.0,0.00021338,2]
[312361405,1705831697399,-2000.0,0.00021394,2]
[312361406,1705831697434,-394.9,0.00021417,2]
[312361407,1705831697468,-200.0,0.00021485,2]
[312361408,1705831697500,-175.79,0.00021535,2]
[312361409,1705831697534,-183.43,0.0002158,2]
[312361410,1705831697565,-250.0,0.00021621,2]
[312361411,1705831697599,-157.0,0.00021642,2]
[312361412,1705831697634,-1075.89,0.00021644,2]
[312361413,1705831697668,-540.1,0.00021676,2]
[312361414,1705831697700,-162.46277826,0.00021696,2]
[312361415,1705831697735,-316.87,0.00021745,2]
[312361416,1705831697769,-150.0,0.00021796,2]
[312361417,1705831697803,-250.0,0.000219,2]
[312361418,1705831697835,-250.0,0.00021918,2]
[312361419,1705831697869,-200.0,0.00021966,2]
[312361420,1705831697900,-179264.11444348,0.00022,2]
[312361421,1705831698223,-150.0,0.00022,2]
[312361422,1705831698267,-23880.0,0.00022,2]
[312361423,1705831698339,-2000.0,0.00022,2]
[312361424,1705831698356,-394.9,0.00022,2]
[312361425,1705831698370,-200.0,0.00022,2]
[312361426,1705831698388,-175.79,0.00022,2]
[312361427,1705831698401,-183.43,0.00022,2]
[312361428,1705831698415,-250.0,0.00022,2]
[312361429,1705831698428,-157.0,0.00022,2]
[312361430,1705831698445,-1075.89,0.00022,2]
[312361431,1705831698458,-540.1,0.00022,2]
[312361432,1705831698471,-162.46277826,0.00022,2]
[312361433,1705831698484,-316.87,0.00022,2]
[312361434,1705831698503,-150.0,0.00022,2]
[312361435,1705831698516,-250.0,0.00022,2]
[312361436,1705831698530,-250.0,0.00022,2]
[312361437,1705831698543,-200.0,0.00022,2]
[312361438,1705831698556,-28994.44277826,0.00022,2]
[312361481,1705831831828,-616.97420109,0.0002029,2]
[312361482,1705831831837,-210.0,0.00021608,2]
[312361483,1705831831847,-153.80502462,0.00021658,2]
[312361484,1705831831859,-129.72997538,0.00021658,2]
[312361485,1705831831869,-2305.7484,0.00021698,2]
[312361486,1705831831879,-160.1,0.00021741,2]
[312361487,1705831831888,-754.34661771,0.00022,2]
[312361488,1705831831900,-644.8767309,0.00022,2]
[312361489,1705831831912,-925.32381818,0.00022,2]
[312361490,1705831831922,-3196.91798374,0.00022,2]
[312361491,1705831831931,-860.71,0.00022015,2]
[312361492,1705831831940,-567.92,0.000221,2]
[312361493,1705831831950,-157.0,0.00022206,2]
[312361494,1705831831959,-3304.0,0.000225,2]
[312361495,1705831831968,-17676.6410356,0.000225,2]
[312361496,1705831831992,-1358.1824,0.000225,2]
[312361519,1705831837679,-255.12619174,0.000225,2]
[312361520,1705831837691,-2924.7558,0.000225,2]
[312361521,1705831837703,-6036.29457266,0.000225,2]
[312361522,1705831837713,-1348.45459935,0.0002257,2]
[312361523,1705831837722,-159.11,0.0002276,2]
[312361524,1705831837732,-157.0,0.0002277,2]
[312361525,1705831837741,-5445.7964682,0.00022798,2]
[312361526,1705831837750,-35417.16529007,0.00022798,2]
[312361527,1705831837759,-1500.0,0.00022798,2]
[312361528,1705831837768,-4638.11355098,0.00022798,2]
[312361529,1705831837778,-155.32336453,0.00022798,2]
[312361530,1705831837787,-3031.20814747,0.00022798,2]
[312361531,1705831837796,-1605.59259017,0.00022798,2]
[312361532,1705831837805,-177.91292476,0.00022798,2]
[312361533,1705831837815,-155.0,0.00022798,2]
[312361534,1705831837824,-273.84370086,0.00022798,2]
[312361535,1705831837834,-24354.95155812,0.00022798,2]
[312361536,1705831837843,-870.44734362,0.00022798,2]
[312361537,1705831837853,-235.25134461,0.00022798,2]
[312361538,1705831837862,-3677.14662018,0.00022798,2]
[312361539,1705831837873,-1860.09511828,0.00022798,2]
[312361540,1705831837882,-16769.48246492,0.00022798,2]
[312361541,1705831837891,-155.0,0.00022798,2]
[312361542,1705831837900,-33387.39114312,0.00022798,2]
[312361543,1705831837910,-26437.03177309,0.00022798,2]
[312361544,1705831837967,-3613.84489398,0.00022798,2]
[312361545,1705831838052,-584.62144801,0.00022798,2]
[312361546,1705831838065,-250.0,0.00022798,2]
[312361547,1705831838081,-2109.99231281,0.00022798,2]
[312361548,1705831838097,-690.84238113,0.00022798,2]
[312361706,1705831840257,-281.18134261,0.0002257,2]
[312361707,1705831840266,-1530.45169273,0.000227,2]
[312361708,1705831840280,-531.06,0.000227,2]
[312361709,1705831840292,-1789.99622207,0.000227,2]
[312361710,1705831840311,-1346.76643358,0.000227,2]
[312361711,1705831840366,-500.0,0.000227,2]
[312361712,1705831840378,-597.60997935,0.000227,2]
[312361713,1705831840388,-2260.5,0.000227,2]
[312361714,1705831840400,-115643.02673203,0.000227,2]
[312361715,1705831840411,-10172.25402571,0.000227,2]
[312361716,1705831840664,-3103.72225,0.000227,2]
[312361717,1705831840677,-1388.08006453,0.000227,2]
[312361718,1705831840687,-6801.37736269,0.00022798,2]
[312361719,1705831840699,-424.82213099,0.00022798,2]
[312361720,1705831841113,-215.41213944,0.00022775,2]
[312361721,1705831841123,-46904.78187186,0.00022798,2]
[312361722,1705831841133,-244.33054012,0.00022798,2]
[312361723,1705831841143,-155.0,0.00022798,2]
[312361724,1705831841153,-220.74699604,0.00022798,2]
[312361725,1705831841163,-256.49453783,0.00022798,2]
[312361727,1705831841172,-309.999999,0.00022799,2]
[312361729,1705831841181,-4366.51229733,0.00022799,2]
[312361731,1705831841190,-1229.20601844,0.00022799,2]
[312361733,1705831841199,-635.66136512,0.00022799,2]
[312361735,1705831841209,-183.00274619,0.000228,3]
[312361737,1705831841218,-312819.65197643,0.000228,2]
[312361740,1705831842677,-491.298365,0.00022798,2]
[312361741,1705831842685,-346.13075499,0.00022798,2]
[312361742,1705831842693,-1797.56235071,0.000228,2]
[312361743,1705831842705,-4103.3305331,0.000228,2]
[312361744,1705831842748,-245.9,0.00022383,2]
[312361745,1705831842758,-315.2475396,0.000228,2]
[312361746,1705831842782,-43227.05014068,0.000228,2]
[312361747,1705831843090,-2979.87841503,0.000228,2]
[312361748,1705831843102,-1245.28478886,0.000228,2]
[312361749,1705831843118,-23482.07583958,0.000228,2]
[312361750,1705831843133,-16704.43177901,0.000228,2]
[312361751,1705831843145,-296.71386855,0.000228,2]
[312361752,1705831843156,-2115.70394357,0.000228,2]
[312361753,1705831843174,-717.584718,0.000228,2]
[312361754,1705831843288,-96188.28789069,0.000228,2]
[312361755,1705831843297,-200.0,0.00022815,2]
[312361756,1705831843307,-800.0,0.00022815,2]
[312361757,1705831843316,-860.71,0.00022829,2]
[312361758,1705831843326,-157.01037795,0.000229,2]
[312361759,1705831843336,-5000.0,0.000229,2]
[312361760,1705831843346,-3615.24223438,0.000229,2]
[312361761,1705831843358,-3615.24223431,0.000229,2]
[312361762,1705831843368,-3615.24223431,0.000229,2]
[312361763,1705831843378,-3615.24223431,0.000229,2]
[312361764,1705831843387,-3615.24223431,0.000229,2]
[312361765,1705831843397,-3615.24223431,0.000229,2]
[312361766,1705831843407,-3615.24223431,0.000229,2]
[312361767,1705831843416,-3615.24223431,0.000229,2]
[312361768,1705831843426,-3615.24223431,0.000229,2]
[312361769,1705831843435,-3615.24223431,0.000229,2]
[312361770,1705831843445,-3615.24223431,0.000229,2]
[312361771,1705831843455,-3615.24223431,0.000229,2]
[312361772,1705831843466,-3615.24223431,0.000229,2]
[312361773,1705831843476,-445.66282337,0.000229,2]
[312361774,1705831843489,-3169.57941094,0.000229,2]
[312361775,1705831843498,-3615.24223431,0.000229,2]
[312361776,1705831843506,-2066.32553812,0.000229,2]
[312361777,1705831843517,-1548.91669619,0.000229,2]
[312361778,1705831843527,-1659.99809876,0.000229,2]
[312361779,1705831843540,-1955.24413555,0.000229,2]
[312361780,1705831843550,-820.36144452,0.000229,2]
[312361781,1705831843563,-1242.2416935,0.000229,2]
[312361782,1705831843609,-1552.63909629,0.000229,2]
[312361783,1705831843618,-1957.42008471,0.000229,2]
[312361791,1705831845723,-729.0490375,0.00022,2]
[312361792,1705831845735,-890.66656144,0.00022,2]
[312361803,1705831846262,-704.83156785,0.00022,2]
[312361804,1705831846271,-1836.7235073,0.00022699,2]
[312361805,1705831846280,-1657.8221496,0.000229,2]
[312361806,1705831846289,-3615.24223431,0.000229,2]
[312361807,1705831846298,-348.73083639,0.000229,2]
[312361808,1705831846312,-1083.05334891,0.000229,2]
[312361809,1705831846323,-2287.038209,0.000229,2]
[312361810,1705831846342,-602.2036766,0.000229,2]
[312361811,1705831846371,-1637.4717205,0.000229,2]
[312361812,1705831846428,-301.36826649,0.000229,2]
[312361813,1705831846439,-483.35778768,0.000229,2]
[312361814,1705831846450,-546.006,0.000229,2]
[312361815,1705831846461,-611.705515,0.000229,2]
[312361816,1705831846484,-15166.07562096,0.000229,2]
[312361817,1705831846493,-230.83,0.0002294,2]
[312361818,1705831846502,-766.8807316,0.00022979,2]
[312361819,1705831846511,-500.0,0.00022979,2]
[312361820,1705831846520,-1670.9661405,0.0002298,2]
[312361821,1705831846532,-425.400001,0.0002298,2]
[312361822,1705831846543,-12186.47765474,0.0002298,2]
[312361823,1705831846554,-7378.38208233,0.0002298,2]
[312362348,1705832112742,286.13,0.00027397,101]
[312362349,1705832112932,286.13,0.00027397,107]
[312362350,1705832113149,286.13,0.00027397,113]
[312362351,1705832113387,286.13,0.00027397,120]
[312362352,1705832212237,334.62,0.00019478,2]
[312362358,1705832739989,325.65,0.00019209,2]
[312362359,1705832754818,1819.8461004,0.00035922,30]
[312362360,1705832853932,209.0,0.00018608,2]
[312362361,1705832872189,-302.44137143,0.00020547,2]
[312362362,1705832872214,-163.47413822,0.00021027,2]
[312362363,1705832872238,-150.0,0.00021092,2]
[312362364,1705832872265,-2000.0,0.00021092,2]
[312362365,1705832872295,-454.34,0.00021094,2]
[312362366,1705832872320,-176.15,0.00021109,2]
[312362367,1705832872349,-2478.67,0.00021109,2]
[312362368,1705832872373,-280.64,0.00021118,2]
[312362369,1705832872398,-3831.29,0.00021126,2]
[312362370,1705832872426,-177.01,0.00021129,2]
[312362371,1705832872451,-617.67,0.00021262,2]
[312362372,1705832872477,-150.0,0.00021323,2]
[312362373,1705832872504,-250.0,0.00021358,2]
[312362374,1705832872529,-23880.0,0.00021384,2]
[312362375,1705832872561,-545.66,0.00021442,2]
[312362376,1705832872584,-155.38,0.00021455,2]
[312362377,1705832872609,-325.65,0.00021473,2]
[312362378,1705832872628,-1061.62449035,0.00021484,2]
[312362381,1705832945281,-10323.17391058,0.00021008,2]
[312362382,1705832945302,-2970.6995,0.00021009,2]
[312362383,1705832945324,-540.19,0.00021446,2]